bitfinex/quotes_SOLUSD_20251218
["timestamp","ask_amount","ask_price","bid_price","bid_amount"]
[1766064738072,0.69,125.21,125.15,11.23016408]
[1766064738267,7.98403193,125.25,125.17,8.80994492]
[1766064738480,0.69,125.24,125.19,11.23016408]
[1766064738998,0.69,125.24,125.16,8.80994492]
[1766064738999,0.69,125.24,125.21,11.23016408]
[1766064739202,0.69,125.24,125.17,8.80994492]
[1766064739382,19.90244975,125.28,125.23,11.23016408]
[1766064739580,0.69,125.28,125.2,8.80994492]
[1766064739779,11.23016408,125.26,125.19,10.43767296]
[1766064739988,11.23016408,125.26,125.18,7.98804542]
[1766064740192,0.69,125.27,125.21,11.23016408]
[1766064740386,11.92016408,125.27,125.22,11.23016408]
[1766064740598,11.92016408,125.27,125.19,27.23485708]
[1766064740599,0.69,125.27,125.19,10.43767296]
[1766064740914,11.23016408,125.25,125.18,10.43767296]
[1766064741208,19.21449676,125.25,125.18,10.43767296]
[1766064741391,11.23016408,125.21,125.06,41.17968475]
[1766064741590,0.69,125.21,125.17,20.040109]
[1766064741793,11.92016408,125.23,125.18,11.23016408]
[1766064742021,11.92016408,125.23,125.15,10.43767296]
[1766064742022,0.69,125.36,125.22,21.66783704]
[1766064742315,11.92016408,125.32,125.27,11.23016408]
[1766064742477,0.69,125.31,125.29,11.23016408]
[1766064742805,0.69,125.34,125.29,11.23016408]
[1766064743104,0.69,125.29,125.23,8.80994492]
[1766064743279,10.43767296,125.32,125.27,11.23016408]
[1766064743474,11.23016408,125.31,125.26,11.23016408]
[1766064743700,11.92016408,125.31,125.26,11.23016408]
[1766064743891,11.23016408,125.3,125.25,11.23016408]
[1766064744088,10.43767296,125.32,125.27,11.23016408]
[1766064744318,22.35783704,125.32,125.27,11.23016408]
[1766064744520,11.92016408,125.32,125.27,11.23016408]
[1766064744715,11.23016408,125.35,125.3,11.23016408]
[1766064745017,11.23016408,125.35,125.26,8.80994492]
[1766064745018,0.69,125.35,125.31,11.23016408]
[1766064745230,11.92016408,125.35,125.27,7.98259974]
[1766064745514,11.92016408,125.35,125.3,11.23016408]
[1766064745683,0.69,125.35,125.31,11.23016408]
[1766064746020,0.69,125.37,125.33,11.23016408]
[1766064746207,0.69,125.37,125.34,11.23016408]
[1766064746408,11.92016408,125.37,125.3,10.43767296]
[1766064746708,0.69,125.4,125.31,16.79001734]
[1766064746903,0.69,125.41,125.35,11.23016408]
[1766064747103,8.72,125.46,125.39,11.23016408]
[1766064747104,11.23016408,125.44,125.39,11.23016408]
[1766064747287,11.23016408,125.44,125.38,11.23016408]
[1766064747475,11.92016408,125.41,125.35,11.23016408]
[1766064747685,11.92016408,125.39,125.33,11.23016408]
[1766064747884,11.92016408,125.39,125.31,35.96740031]
[1766064747885,0.69,125.39,125.31,35.96740031]
[1766064748183,0.69,125.38,125.34,11.23016408]
[1766064748405,0.69,125.41,125.34,11.23016408]
[1766064748711,11.92016408,125.4,125.33,7.97852321]
[1766064748911,11.23016408,125.43,125.38,11.23016408]
[1766064749116,0.69,125.43,125.37,8.80994492]
[1766064749406,11.23016408,125.42,125.37,11.23016408]
[1766064749703,11.92016408,125.41,125.34,8.80994492]
[1766064749908,0.69,125.4,125.34,11.23016408]
[1766064750083,11.92016408,125.39,125.32,8.80994492]
[1766064750289,0.69,125.36,125.3,8.80994492]
[1766064750583,11.23016408,125.36,125.29,10.43767296]
[1766064750791,0.69,125.35,125.27,7.98264735]
[1766064750990,11.23016408,125.33,125.28,11.23016408]
[1766064751200,11.23016408,125.33,125.25,8.74]
[1766064751201,0.69,125.34,125.25,16.72356976]
[1766064751507,0.69,125.36,125.29,11.23016408]
[1766064751690,11.23016408,125.34,125.29,11.23016408]
[1766064751892,39.85651654,125.45,125.33,11.23016408]
[1766064752078,39.85651654,125.45,125.28,18.41971831]
[1766064752079,0.69,125.43,125.32,8.80994492]
[1766064752284,0.69,125.4,125.32,17.54994492]
[1766064752506,0.69,125.4,125.37,11.23016408]
[1766064752713,0.69,125.4,125.36,11.23016408]
[1766064752913,0.69,125.4,125.32,17.54994492]
[1766064752914,0.69,125.4,125.37,11.23016408]
[1766064753213,10.43767296,125.39,125.31,8.80994492]
[1766064753391,11.92016408,125.36,125.29,7.98107352]
[1766064753592,11.23016408,125.38,125.31,8.80994492]
[1766064753897,11.23016408,125.37,125.32,11.23016408]
[1766064754102,11.23016408,125.37,125.28,10.43767296]
[1766064754103,11.92016408,125.36,125.28,10.43767296]
[1766064754424,0.69,125.4,125.35,11.23016408]
[1766064754710,17.52994492,125.46,125.35,8.80994492]
[1766064754711,11.92016408,125.43,125.35,8.80994492]
[1766064754891,11.92016408,125.43,125.38,11.23016408]
[1766064755098,19.89314677,125.43,125.38,11.23016408]
[1766064755306,11.23016408,125.44,125.39,11.23016408]
[1766064755511,0.69,125.47,125.43,11.23016408]
[1766064755711,11.23016408,125.46,125.41,11.23016408]
[1766064755887,0.69,125.46,125.42,11.23016408]
[1766064756083,0.1,125.49,125.39,8.80994492]
[1766064756316,0.69,125.48,125.39,8.80994492]
[1766064756488,0.69,125.48,125.43,11.23016408]
[1766064756699,11.92016408,125.48,125.43,11.23016408]
[1766064757086,0.69,125.48,125.44,11.23016408]
[1766064757289,0.1,125.49,125.45,11.23016408]
[1766064757516,0.1,125.49,125.43,11.23016408]
[1766064757517,0.79,125.49,125.43,11.23016408]
[1766064757686,11.23016408,125.48,125.41,16.7833674]
[1766064757884,11.92016408,125.48,125.43,11.23016408]
[1766064758187,0.69,125.48,125.42,11.23016408]
[1766064758387,12.02016408,125.49,125.44,11.23016408]
[1766064758590,0.69,125.48,125.44,11.23016408]
[1766064758782,0.69,125.48,125.4,28.65542679]
[1766064758783,0.1,125.49,125.46,11.23016408]
[1766064758985,0.1,125.49,125.43,36.71380863]
[1766064759200,0.1,125.49,125.34,40.68923679]
[1766064759201,11.92016408,125.46,125.34,39.89140689]
[1766064759407,0.69,125.46,125.41,16.78362397]
[1766064759610,10.53767296,125.49,125.43,11.23016408]
[1766064759611,11.23016408,125.48,125.43,11.23016408]
[1766064759808,10.53767296,125.49,125.44,11.23016408]
[1766064759991,21.76783704,125.49,125.44,11.23016408]
[1766064760190,0.1,125.49,125.44,11.23016408]
[1766064760410,0.1,125.49,125.47,11.23016408]
[1766064760619,0.1,125.49,125.48,11.23016408]
[1766064760817,8.65441008,125.56,125.48,20.040109]
[1766064761116,11.92016408,125.56,125.48,7.96939751]
[1766064761318,0.69,125.56,125.52,11.23016408]
[1766064761614,0.69,125.56,125.48,27.89289129]
[1766064761615,0.69,125.56,125.51,11.23016408]
[1766064761818,11.92016408,125.56,125.51,11.23016408]
[1766064761991,0.69,125.56,125.5,11.23016408]
[1766064762321,0.69,125.55,125.51,11.23016408]
[1766064762814,11.92016408,125.55,125.5,11.23016408]
[1766064762989,11.92016408,125.55,125.49,8.80994492]
[1766064763190,0.69,125.55,125.49,20.040109]
[1766064763391,0.69,125.57,125.53,11.23016408]
[1766064763628,8.7,125.64,125.52,19.24761788]
[1766064763802,0.69,125.63,125.59,11.23016408]
[1766064763995,11.92016408,125.63,125.58,11.23016408]
[1766064764189,0.69,125.63,125.56,8.80994492]
[1766064764390,11.23016408,125.61,125.56,11.23016408]
[1766064764618,11.23016408,125.62,125.55,8.80994492]
[1766064764790,11.23016408,125.62,125.57,11.23016408]
[1766064764989,11.92016408,125.61,125.55,8.80994492]
[1766064765192,0.69,125.61,125.57,11.23016408]
[1766064765416,9.78133254,125.6,125.55,9.78133254]
[1766064765617,0.69,125.66,125.58,9.78133254]
[1766064765793,10.47133254,125.64,125.59,9.78133254]
[1766064766121,10.47133254,125.61,125.56,9.78133254]
[1766064766326,0.69,125.61,125.56,8.80994492]
[1766064766699,0.69,125.59,125.54,8.80994492]
[1766064767010,9.78133254,125.61,125.56,9.78133254]
[1766064767222,9.78133254,125.6,125.55,9.78133254]
[1766064767414,0.69,125.6,125.55,9.78133254]
[1766064767614,9.78133254,125.62,125.56,9.78133254]
[1766064767796,10.47133254,125.65,125.59,18.59127746]
[1766064768001,10.47133254,125.64,125.59,9.78133254]
[1766064768505,19.08628962,125.65,125.58,9.78133254]
[1766064768729,19.08628962,125.65,125.55,8.80994492]
[1766064768730,0.69,125.64,125.55,8.80994492]
[1766064769026,9.78133254,125.59,125.5,19.91944076]
[1766064769228,9.78133254,125.58,125.53,9.78133254]
[1766064769717,10.47133254,125.57,125.48,27.89289129]
[1766064769926,10.47133254,125.57,125.52,9.78133254]
[1766064770137,7.96290705,125.59,125.53,9.78133254]
[1766064770417,10.47133254,125.58,125.53,9.78133254]
[1766064770800,9.78133254,125.57,125.52,9.78133254]
[1766064771000,0.69,125.57,125.52,9.78133254]
[1766064771321,9.78133254,125.54,125.48,7.9692126]
[1766064771499,0.69,125.55,125.49,8.80994492]
[1766064771815,0.69,125.55,125.49,9.78133254]
[1766064772119,9.78133254,125.56,125.51,9.78133254]
[1766064772298,0.69,125.57,125.5,8.80994492]
[1766064772497,0.69,125.61,125.55,9.78133254]
[1766064772753,0.69,125.59,125.53,8.80994492]
[1766064773027,0.69,125.62,125.57,9.78133254]
[1766064773225,10.47133254,125.62,125.57,9.78133254]
[1766064773406,0.69,125.65,125.58,8.80994492]
[1766064773611,0.69,125.66,125.58,8.80994492]
[1766064773913,0.69,125.63,125.59,9.78133254]
[1766064774303,10.47133254,125.67,125.62,9.78133254]
[1766064774506,0.69,125.67,125.62,9.78133254]
[1766064774814,0.69,125.68,125.64,9.78133254]
[1766064775116,0.69,125.68,125.61,19.24761788]
[1766064775423,0.69,125.68,125.62,7.96051584]
[1766064775632,9.78133254,125.63,125.54,7.96518151]
[1766064775798,9.78133254,125.63,125.46,79.82145625]
[1766064775799,10.47133254,125.57,125.47,27.89511436]
[1766064775993,9.78133254,125.57,125.47,27.89511436]
[1766064776198,9.78133254,125.57,125.51,9.78133254]
[1766064776199,9.78133254,125.56,125.51,9.78133254]
[1766064776421,0.69,125.57,125.48,8.72]
[1766064776640,0.69,125.58,125.49,9.78133254]
[1766064776840,9.78133254,125.55,125.5,9.78133254]
[1766064777150,0.69,125.56,125.52,9.78133254]
[1766064777349,0.69,125.58,125.54,9.78133254]
[1766064777552,9.78133254,125.6,125.5,8.80994492]
[1766064777732,10.47133254,125.6,125.53,8.80994492]
[1766064778047,10.47133254,125.6,125.55,9.78133254]
[1766064778249,10.47133254,125.56,125.49,7.96876245]
[1766064778452,10.47133254,125.54,125.49,9.78133254]
[1766064778624,0.69,125.57,125.52,9.78133254]
[1766064778826,0.69,125.57,125.53,9.78133254]
[1766064779038,10.43767296,125.6,125.53,9.78133254]
[1766064779239,10.43767296,125.6,125.55,9.78133254]
[1766064779240,10.47133254,125.6,125.55,9.78133254]
[1766064779725,8.7,125.68,125.58,9.78133254]
[1766064779726,0.69,125.67,125.58,9.78133254]
[1766064779951,10.47133254,125.63,125.58,9.78133254]
[1766064780149,10.47133254,125.61,125.55,9.78133254]
[1766064780350,0.69,125.63,125.54,9.78133254]
[1766064780548,0.69,125.63,125.55,18.40260655]
[1766064780549,9.78133254,125.63,125.55,18.40260655]
[1766064780848,10.47133254,125.61,125.55,9.78133254]
[1766064781155,10.47133254,125.61,125.54,17.52994492]
[1766064781355,0.69,125.69,125.56,8.80994492]
[1766064781528,18.72887332,125.7,125.42,0.99999999]
[1766064781529,9.77342385,125.57,125.42,0.99999999]
[1766064781848,9.77342385,125.57,125.41,0.79738457]
[1766064781849,9.77342385,125.53,125.43,8.72]
[1766064782028,0.69,125.52,125.41,27.90846024]
[1766064782226,8.7,125.64,125.41,17.74726963]
[1766064782227,0.69,125.54,125.41,17.74726963]
[1766064782434,9.77342385,125.43,125.38,9.77342385]
[1766064782643,9.77342385,125.42,125.38,8.72]
[1766064782843,0.69,125.43,125.39,9.77342385]
[1766064783152,9.77342385,125.43,125.39,7.97502737]
[1766064783337,0.69,125.45,125.38,26.46900661]
[1766064783526,0.69,125.43,125.38,26.46900661]
[1766064783730,0.69,125.43,125.38,16.69558276]
[1766064783946,0.69,125.52,125.39,10.43767296]
[1766064784150,0.69,125.39,125.36,0.2]
[1766064784336,10.46342385,125.37,125.3,9.77342385]
[1766064784533,0.69,125.37,125.33,9.77342385]
[1766064784759,0.69,125.37,125.29,8.72]
[1766064784950,9.77342385,125.4,125.32,10.43767296]
[1766064785271,9.77342385,125.4,125.3,27.93296088]
[1766064785272,10.43767296,125.4,125.3,27.93296088]
[1766064785436,9.77342385,125.33,125.28,7.9815553]
[1766064785631,9.77342385,125.33,125.27,17.75617456]
[1766064785632,9.77342385,125.32,125.27,17.75617456]
[1766064785851,10.43767296,125.36,125.26,7.98328626]
[1766064785852,10.46342385,125.3,125.26,7.98328626]
[1766064786046,10.46342385,125.3,125.24,19.96144005]
[1766064786047,0.69,125.3,125.24,8.72]
[1766064786238,9.77342385,125.3,125.24,8.72]
[1766064786442,9.77342385,125.29,125.22,0.21]
[1766064786636,9.77342385,125.29,125.24,9.77342385]
[1766064786966,9.77342385,125.27,125.22,17.75928749]
[1766064787139,0.69,125.3,125.25,9.77342385]
[1766064787339,9.77342385,125.29,125.24,17.75769547]
[1766064787640,9.77342385,125.3,125.25,7.98353294]
[1766064787953,9.77342385,125.28,125.23,9.77342385]
[1766064788128,0.69,125.32,125.21,10.43767296]
[1766064788459,9.77342385,125.31,125.26,9.77342385]
[1766064788759,0.69,125.32,125.26,28.17761788]
[1766064788933,0.69,125.44,125.31,9.77342385]
[1766064789132,0.69,125.37,125.29,8.80994492]
[1766064789338,10.46342385,125.35,125.3,9.77342385]
[1766064789541,10.46342385,125.38,125.3,8.80994492]
[1766064789728,9.77342385,125.38,125.3,8.80994492]
[1766064789927,0.69,125.37,125.29,16.79124674]
[1766064790150,10.46342385,125.37,125.31,8.80994492]
[1766064790343,10.46342385,125.37,125.31,9.77342385]
[1766064790531,0.69,125.37,125.32,9.77342385]
[1766064790728,10.46342385,125.35,125.3,9.77342385]
[1766064790938,10.46342385,125.35,125.29,16.79124674]
[1766064790939,10.43767296,125.4,125.32,9.77342385]
[1766064791133,10.46342385,125.35,125.3,9.77342385]
[1766064791351,9.77342385,125.32,125.25,0.21]
[1766064791558,9.77342385,125.32,125.25,16.70386957]
[1766064791760,10.46342385,125.31,125.26,9.77342385]
[1766064792061,0.69,125.35,125.27,7.98222015]
[1766064792233,0.69,125.32,125.27,7.98275657]
[1766064792442,0.69,125.32,125.27,17.75567057]
[1766064792653,0.69,125.32,125.27,7.98224672]
[1766064792858,0.69,125.32,125.26,17.75675482]
[1766064793057,0.69,125.32,125.27,17.7560511]
[1766064793247,0.69,125.32,125.27,9.77342385]
[1766064793456,0.68,125.34,125.28,9.77342385]
[1766064793637,0.68,125.34,125.26,27.94188087]
[1766064793838,9.77342385,125.33,125.26,27.94188087]
[1766064794069,10.45342385,125.32,125.27,8.72]
[1766064794267,10.45342385,125.32,125.27,18.49342385]
[1766064794473,0.68,125.27,125.14,0.21]
[1766064794671,10.43767296,125.33,125.17,29.74486066]
[1766064794672,10.45342385,125.23,125.17,29.74486066]
[1766064794967,0.68,125.22,125.16,7.98963104]
[1766064795172,9.77342385,125.17,125.13,8.72]
[1766064795352,0.68,125.18,125.13,16.71162378]
[1766064795670,0.68,125.18,125.1,0.2]
[1766064795671,10.45342385,125.14,125.1,0.2]
[1766064795850,9.57342386,125.12,125.1,0.2]
[1766064796055,9.77342385,125.11,125.1,0.2]
[1766064796252,9.77342385,125.11,125.06,0.2]
[1766064796253,0.68,125.1,125.06,0.2]
[1766064796460,0.68,125.09,125.06,0.2]
[1766064796653,0.68,125.14,125.06,9.97342385]
[1766064796849,0.68,125.14,125.06,8.19597346]
[1766064797163,0.68,125.14,125.09,9.77342385]
[1766064797354,0.68,125.14,125.1,7.99360511]
[1766064797552,0.68,125.19,125.13,9.77342385]
[1766064797753,0.68,125.19,125.15,9.77342385]
[1766064797954,0.68,125.22,125.13,9.21994492]
[1766064798157,10.45342385,125.22,125.13,0.41]
[1766064798467,10.45342385,125.24,125.16,10.43767296]
[1766064798770,0.68,125.22,125.13,9.21994492]
[1766064798954,10.45342385,125.22,125.16,9.77342385]
[1766064799138,10.45342385,125.22,125.15,10.43767296]
[1766064799139,10.45342385,125.2,125.15,9.77342385]
[1766064799339,8.80994492,125.25,125.11,27.24047825]
[1766064799340,0.68,125.17,125.11,27.24047825]
[1766064799560,0.68,125.2,125.15,9.77342385]
[1766064799865,0.68,125.21,125.16,9.77342385]
[1766064800055,9.77342385,125.21,125.16,9.77342385]
[1766064800249,9.77342385,125.21,125.12,0.41]
[1766064800250,9.77342385,125.2,125.15,9.77342385]
[1766064800443,9.77342385,125.23,125.15,8.80994492]
[1766064800649,10.45342385,125.24,125.17,8.80994492]
[1766064800967,0.68,125.24,125.2,9.77342385]
[1766064801360,9.77342385,125.24,125.18,7.98849656]
[1766064801556,10.45342385,125.21,125.14,8.80994492]
[1766064801753,0.68,125.24,125.15,8.74]
[1766064801953,9.77342385,125.24,125.19,9.77342385]
[1766064802158,10.45342385,125.24,125.19,9.77342385]
[1766064802454,9.77342385,125.26,125.19,8.80994492]
[1766064802657,10.45342385,125.27,125.19,8.80994492]
[1766064802852,0.68,125.27,125.19,9.21994492]
[1766064803052,10.45342385,125.27,125.19,9.21994492]
[1766064803255,9.77342385,125.26,125.19,8.80994492]
[1766064803453,10.45342385,125.25,125.2,9.77342385]
[1766064803654,0.68,125.25,125.21,9.77342385]
[1766064803868,0.68,125.25,125.18,8.80994492]
[1766064804058,10.45342385,125.24,125.19,9.77342385]
[1766064804471,0.68,125.24,125.19,9.77342385]
[1766064804650,0.68,125.24,125.2,9.77342385]
[1766064804849,0.68,125.24,125.19,7.9873923]
[1766064805044,11.11767296,125.27,125.21,9.77342385]
[1766064805251,9.77342385,125.26,125.2,7.98695485]
[1766064805466,9.77342385,125.26,125.21,9.77342385]
[1766064805667,0.68,125.26,125.21,9.77342385]
[1766064805867,9.77342385,125.28,125.23,9.77342385]
[1766064806150,7.98091651,125.3,125.2,9.77342385]
[1766064806151,10.45342385,125.25,125.2,9.77342385]
[1766064806352,0.68,125.29,125.18,0.41]
[1766064806670,0.68,125.29,125.17,8.74]
[1766064806671,0.68,125.28,125.22,10.43767296]
[1766064806850,0.68,125.28,125.24,9.77342385]
[1766064807047,0.68,125.32,125.25,9.77342385]
[1766064807254,9.77342385,125.33,125.28,9.77342385]
[1766064807476,0.68,125.34,125.28,9.77342385]
[1766064807650,9.71999999,125.42,125.26,19.95842842]
[1766064807651,0.68,125.31,125.26,7.9831903]
[1766064807851,0.68,125.31,125.24,39.20872089]
[1766064807852,9.77342385,125.3,125.25,9.77342385]
[1766064808173,0.68,125.3,125.26,9.77342385]
[1766064808869,0.68,125.33,125.29,9.77342385]
[1766064809072,27.91291171,125.39,125.3,9.77342385]
[1766064809256,0.68,125.38,125.28,7.98199523]
[1766064809455,0.68,125.34,125.29,17.75463194]
[1766064809655,0.68,125.34,125.29,7.98120809]
[1766064809851,10.45342385,125.34,125.27,16.79251254]
[1766064810057,10.45342385,125.34,125.29,17.75482545]
[1766064810387,10.45342385,125.36,125.31,9.77342385]
[1766064810671,0.68,125.36,125.33,9.77342385]
[1766064810874,10.45342385,125.38,125.33,9.77342385]
[1766064811072,7.97257434,125.43,125.35,9.77342385]
[1766064811271,10.45342385,125.4,125.31,9.21994492]
[1766064811456,10.45342385,125.39,125.34,9.77342385]
[1766064811652,9.77342385,125.41,125.36,9.77342385]
[1766064811864,0.68,125.41,125.35,9.77342385]
[1766064812073,0.68,125.41,125.37,9.77342385]
[1766064812455,10.45342385,125.43,125.38,9.77342385]
[1766064812655,0.68,125.43,125.38,9.77342385]
[1766064812851,10.45342385,125.43,125.37,9.77342385]
[1766064813083,9.77342385,125.41,125.36,9.77342385]
[1766064813283,10.45342385,125.42,125.35,17.54994492]
[1766064813577,10.45342385,125.4,125.35,8.74]
[1766064813764,10.45342385,125.4,125.35,18.51342385]
[1766064814561,9.77342385,125.38,125.35,8.74]
[1766064814954,9.77342385,125.36,125.21,0.99999999]
[1766064815188,0.68,125.39,125.28,9.77342385]
[1766064815383,9.77342385,125.31,125.24,7.98466943]
[1766064815675,10.43767296,125.34,125.29,9.77342385]
[1766064815676,0.68,125.34,125.29,9.77342385]
[1766064815890,10.45342385,125.37,125.3,10.43767296]
[1766064816183,7.97552357,125.39,125.33,9.77342385]
[1766064816372,0.68,125.38,125.31,8.80994492]
[1766064816568,0.68,125.38,125.31,9.21994492]
[1766064816872,18.41154466,125.41,125.31,9.21994492]
[1766064817074,9.77342385,125.42,125.37,9.77342385]
[1766064817278,10.45342385,125.4,125.34,19.24761788]
[1766064817580,10.45342385,125.4,125.35,9.77342385]
[1766064817794,10.43767296,125.4,125.31,7.98014898]
[1766064817978,9.77342385,125.35,125.3,9.77342385]
[1766064818287,0.68,125.35,125.29,35.30465326]
[1766064818781,10.45342385,125.35,125.3,9.77342385]
[1766064818983,9.77342385,125.38,125.33,9.77342385]
[1766064819276,0.68,125.38,125.29,17.95994492]
[1766064819469,10.45342385,125.38,125.3,27.93186742]
[1766064819670,10.45342385,125.38,125.31,8.80994492]
[1766064820075,9.77342385,125.37,125.31,8.80994492]
[1766064820311,10.45342385,125.38,125.31,8.80994492]
[1766064820754,9.77342385,125.4,125.34,8.80994492]
[1766064820961,10.45342385,125.41,125.35,9.77342385]
[1766064821162,10.45342385,125.41,125.36,9.77342385]
[1766064821364,9.77342385,125.4,125.35,9.77342385]
[1766064821558,9.77342385,125.4,125.34,8.80994492]
[1766064821766,9.77342385,125.38,125.33,9.77342385]
[1766064821980,10.45342385,125.38,125.33,9.77342385]
[1766064822370,9.77342385,125.4,125.35,9.77342385]
[1766064822569,11.12767296,125.41,125.35,9.77342385]
[1766064822767,9.77342385,125.4,125.33,16.78870463]
[1766064822970,10.46342385,125.4,125.35,9.77342385]
[1766064823370,6.98136628,125.4,125.35,6.29136628]
[1766064823570,6.29136628,125.41,125.36,6.29136628]
[1766064823764,19.92911178,125.45,125.37,6.29136628]
[1766064823765,6.29136628,125.42,125.37,6.29136628]
[1766064823962,0.69,125.42,125.36,8.80994492]
[1766064824201,6.98136628,125.4,125.34,8.80994492]
[1766064824358,6.29136628,125.37,125.32,6.29136628]
[1766064824558,0.69,125.41,125.31,19.15767296]
[1766064824764,0.69,125.39,125.32,6.29136628]
[1766064824959,0.69,125.39,125.32,14.27050061]
[1766064825158,0.69,125.39,125.34,6.29136628]
[1766064825491,10.22575324,125.38,125.33,10.22575324]
[1766064825984,0.69,125.39,125.32,8.80994492]
[1766064826186,10.22575324,125.38,125.32,8.80994492]
[1766064826488,10.43767296,125.42,125.37,10.22575324]
[1766064826489,0.69,125.42,125.37,10.22575324]
[1766064826668,0.69,125.42,125.38,10.22575324]
[1766064826858,0.69,125.42,125.37,10.22575324]
[1766064827058,10.22575324,125.42,125.35,8.72]
[1766064827278,0.69,125.38,125.31,7.97995475]
[1766064827472,10.22575324,125.37,125.32,10.22575324]
[1766064827680,10.91575324,125.37,125.32,10.22575324]
[1766064828091,10.43767296,125.42,125.3,25.51040081]
[1766064828092,10.22575324,125.36,125.3,8.72]
[1766064828391,10.91575324,125.34,125.3,8.72]
[1766064828561,10.91575324,125.33,125.28,10.22575324]
[1766064828760,0.69,125.33,125.28,10.22575324]
[1766064828965,0.69,125.33,125.29,10.22575324]
[1766064829285,10.22575324,125.35,125.3,10.22575324]
[1766064829491,10.22575324,125.34,125.29,10.22575324]
[1766064829692,10.91575324,125.35,125.3,10.22575324]
[1766064830186,0.69,125.35,125.3,10.22575324]
[1766064830587,10.91575324,125.35,125.3,10.22575324]
[1766064830787,10.91575324,125.37,125.31,10.22575324]
[1766064830986,10.91575324,125.37,125.32,10.22575324]
[1766064831170,10.22575324,125.41,125.35,10.22575324]
[1766064831503,0.69,125.38,125.32,20.6634262]
[1766064831676,0.69,125.38,125.33,10.22575324]
[1766064832195,0.69,125.38,125.32,18.41711446]
[1766064832196,10.91575324,125.38,125.32,20.6634262]
[1766064832389,10.91575324,125.38,125.33,10.22575324]
[1766064832693,0.69,125.38,125.33,10.22575324]
[1766064832867,0.69,125.42,125.37,10.22575324]
[1766064833193,10.91575324,125.41,125.36,10.22575324]
[1766064833692,0.69,125.41,125.38,10.22575324]
[1766064833883,10.22575324,125.42,125.36,10.22575324]
[1766064834085,30.153153,125.46,125.36,10.22575324]
[1766064834086,10.91575324,125.41,125.36,10.22575324]
[1766064834283,10.91575324,125.41,125.35,10.22575324]
[1766064834486,10.91575324,125.41,125.35,8.80994492]
[1766064834692,0.69,125.41,125.35,8.80994492]
[1766064834880,10.91575324,125.41,125.36,10.22575324]
[1766064835197,0.69,125.41,125.36,10.22575324]
[1766064835594,10.22575324,125.4,125.35,10.22575324]
[1766064835898,18.88973729,125.41,125.35,10.22575324]
[1766064836197,10.91575324,125.41,125.36,10.22575324]
[1766064836393,10.91575324,125.37,125.32,28.64289]
[1766064836573,10.22575324,125.4,125.35,10.22575324]
[1766064836780,10.22575324,125.4,125.34,10.22575324]
[1766064837085,10.91575324,125.38,125.32,18.41688743]
[1766064837289,10.91575324,125.38,125.32,20.6634262]
[1766064837495,0.69,125.37,125.28,11.21848576]
[1766064837797,0.69,125.35,125.3,11.21848576]
[1766064837998,11.21848576,125.36,125.27,0.41]
[1766064837999,11.90848576,125.34,125.29,11.21848576]
[1766064838193,0.69,125.32,125.27,11.21848576]
[1766064838387,0.69,125.32,125.29,11.21848576]
[1766064838595,0.69,125.34,125.29,11.21848576]
[1766064838772,0.69,125.34,125.3,11.21848576]
[1766064838977,0.69,125.36,125.28,8.80994492]
[1766064839286,30.37637254,125.39,125.34,11.21848576]
[1766064839287,0.69,125.39,125.34,11.21848576]
[1766064839681,0.69,125.39,125.34,19.19677279]
[1766064839878,0.69,125.39,125.34,7.97828703]
[1766064840083,0.69,125.39,125.34,11.21848576]
[1766064840280,0.69,125.37,125.32,11.21848576]
[1766064840485,0.69,125.4,125.34,11.21848576]
[1766064840692,0.72,125.39,125.34,7.9781788]
[1766064840881,0.72,125.39,125.34,11.21848576]
[1766064841102,0.72,125.39,125.31,48.3267563]
[1766064841103,11.93848576,125.39,125.33,11.21848576]
[1766064841286,0.72,125.33,125.2,40.68191497]
[1766064841478,0.72,125.29,125.21,7.98658254]
[1766064841685,11.21848576,125.31,125.26,11.21848576]
[1766064841878,0.72,125.32,125.26,11.21848576]
[1766064842084,11.93848576,125.32,125.26,11.21848576]
[1766064842279,0.72,125.35,125.29,11.21848576]
[1766064842487,0.72,125.35,125.29,8.80994492]
[1766064842780,0.72,125.35,125.31,11.21848576]
[1766064842985,0.72,125.35,125.3,11.21848576]
[1766064843707,0.72,125.45,125.34,19.19643289]
[1766064843881,11.21848576,125.41,125.36,11.21848576]
[1766064844204,11.21848576,125.39,125.34,11.21848576]
[1766064844501,11.21848576,125.39,125.33,8.72]